lending/lending_fUSD_20251107
["ID","MTS","AMOUNT","RATE_DAILY","PERIOD"]
[393334597,1762487441151,-180300.0,0.000337,2]
[393334598,1762487441160,-1010.0,0.000337,7]
[393334599,1762487441170,-500.0,0.00033712,7]
[393334600,1762487441179,-500.0,0.00033766,7]
[393334601,1762487441188,-500.0,0.00033865,7]
[393334602,1762487441197,-500.0,0.00033871,7]
[393334603,1762487441207,-500.0,0.000339,7]
[393334604,1762487441218,-285.15,0.000339,30]
[393334605,1762487441228,-1100.0,0.000339,12]
[393334606,1762487441237,-19195.1566376,0.00033926,3]
[393334607,1762487441247,-9949.81577771,0.00033937,2]
[393334608,1762487441256,-10116.71229981,0.00033937,2]
[393334609,1762487441266,-500.0,0.00033965,7]
[393334610,1762487441276,-278.30482989,0.00033987,14]
[393334611,1762487441286,-27347.7738421,0.0003399,3]
[393334612,1762487441296,-1866.76,0.00034,2]
[393334613,1762487441307,-2000.0,0.00034,2]
[393334614,1762487441317,-2000.0,0.00034,2]
[393334615,1762487441326,-2000.0,0.00034,2]
[393334616,1762487441336,-2000.0,0.00034,2]
[393334617,1762487441345,-2000.0,0.00034,2]
[393334618,1762487441354,-2000.0,0.00034,2]
[393334619,1762487441363,-2000.0,0.00034,2]
[393334620,1762487441373,-2010.91,0.00034,2]
[393334621,1762487441383,-500.0,0.00034006,7]
[393334622,1762487441393,-500.0,0.00034034,7]
[393334623,1762487441403,-500.0,0.00034079,7]
[393334624,1762487441412,-700.0,0.00034187,7]
[393334625,1762487441422,-500.0,0.00034192,7]
[393334626,1762487441432,-1885.32,0.000342,2]
[393334627,1762487441441,-500.0,0.00034201,7]
[393334628,1762487441451,-500.0,0.00034301,2]
[393334629,1762487441460,-500.0,0.00034345,7]
[393334630,1762487441470,-1088.81,0.000344,14]
[393334631,1762487441479,-500.0,0.0003448,7]
[393334632,1762487441488,-199.0,0.0003452,8]
[393334633,1762487441498,-19195.1566376,0.00034532,3]
[393334634,1762487441507,-500.0,0.00034542,7]
[393334635,1762487441517,-700.0,0.00034553,7]
[393334636,1762487441527,-500.0,0.00034571,7]
[393334637,1762487441536,-5515.0,0.000346,3]
[393334638,1762487441546,-500.0,0.00034656,7]
[393334639,1762487441555,-500.0,0.00034674,7]
[393334640,1762487441564,-1000.0,0.00034685,7]
[393334641,1762487441574,-1004.0,0.000347,7]
[393334642,1762487441583,-2000.0,0.00034703,120]
[393334643,1762487441592,-500.0,0.00034719,7]
[393334644,1762487441601,-218.65853886,0.00034756,2]
[393334645,1762487441610,-700.0,0.0003476,7]
[393334646,1762487441619,-500.0,0.00034775,7]
[393334647,1762487441628,-500.0,0.00034817,120]
[393334648,1762487441638,-500.0,0.00034817,120]
[393334649,1762487441648,-1421.25133821,0.0003488,30]
[393334650,1762487441657,-218.65853886,0.00034885,2]
[393334651,1762487441666,-874.46145275,0.00034913,2]
[393334652,1762487441674,-700.0,0.0003494,7]
[393334653,1762487441683,-500.0,0.00034958,7]
[393334654,1762487441692,-500.0,0.00034968,7]
[393334655,1762487441701,-150.0,0.00035,4]
[393334656,1762487441710,-150.0,0.00035,4]
[393334657,1762487441719,-150.0,0.00035,4]
[393334658,1762487441728,-150.0,0.00035,4]
[393334659,1762487441737,-150.0,0.00035,4]
[393334660,1762487441748,-150.0,0.00035,4]
[393334661,1762487441758,-206.29164213,0.00035,4]
[393334662,1762487441767,-170.52097631,0.00035,4]
[393334663,1762487441776,-150.0,0.00035,4]
[393334664,1762487441785,-150.0,0.00035,4]
[393334665,1762487441794,-150.0,0.00035,4]
[393334666,1762487441803,-500.0,0.00035,4]
[393334667,1762487441812,-150.0,0.00035,4]
[393334668,1762487441821,-201.77170625,0.00035,4]
[393334669,1762487441830,-244.77701906,0.00035,4]
[393334670,1762487441839,-150.0,0.00035,4]
[393334671,1762487441848,-150.0,0.00035,4]
[393334672,1762487441858,-150.0,0.00035,4]
[393334673,1762487441867,-285.15,0.00035,30]
[393334674,1762487441876,-700.0,0.00035058,30]
[393334675,1762487441885,-700.0,0.00035067,30]
[393334676,1762487441895,-500.0,0.00035085,30]
[393334677,1762487441904,-1000.6072,0.00035099,2]
[393334678,1762487442060,-700.0,0.00035123,30]
[393334679,1762487442084,-218.65853886,0.00035128,2]
[393334680,1762487442094,-19195.1566376,0.00035128,3]
[393334681,1762487442105,-150.0,0.00035137,4]
[393334682,1762487442115,-150.0,0.00035137,4]
[393334683,1762487442124,-150.0,0.00035137,4]
[393334684,1762487442134,-150.0,0.00035137,4]
[393334685,1762487442143,-150.0,0.00035137,4]
[393334686,1762487442153,-642.0,0.00035137,4]
[393334687,1762487442162,-150.0,0.00035137,4]
[393334688,1762487442172,-150.0,0.00035137,4]
[393334689,1762487442181,-150.0,0.00035137,4]
[393334690,1762487442191,-500.0,0.00035149,30]
[393334691,1762487442199,-209.58808299,0.00035231,2]
[393334692,1762487442210,-500.0,0.00035268,30]
[393334693,1762487442222,-221.75,0.00035271,2]
[393334694,1762487442232,-200.0,0.00035274,4]
[393334695,1762487442242,-200.0,0.00035274,4]
[393334696,1762487442252,-200.0,0.00035274,4]
[393334697,1762487442261,-200.0,0.00035274,4]
[393334698,1762487442270,-250.08208835,0.00035274,4]
[393334699,1762487442280,-150.0,0.00035274,4]
[393334700,1762487442289,-150.0,0.00035274,4]
[393334701,1762487442299,-203.53415188,0.00035274,4]
[393334702,1762487442309,-874.46145275,0.00035275,2]
[393334703,1762487442319,-500.0,0.00035302,30]
[393334704,1762487442329,-500.0,0.0003531,30]
[393334705,1762487442339,-700.0,0.00035347,30]
[393334706,1762487442349,-218.65853886,0.00035395,2]
[393334707,1762487442359,-1088.81,0.000354,14]
[393334708,1762487442368,-221.75,0.00035404,2]
[393334709,1762487442377,-218.76814441,0.00035411,4]
[393334711,1762487442387,-150.0,0.00035411,4]
[393334713,1762487442396,-500.0,0.00035427,30]
[393334715,1762487442406,-500.0,0.00035458,30]
[393334717,1762487442415,-500.0,0.00035458,30]
[393334719,1762487442424,-700.0,0.00035461,30]
[393334720,1762487442433,-5515.0,0.000355,5]
[393334721,1762487442443,-874.46145275,0.00035518,2]
[393334722,1762487442452,-500.0,0.00035519,30]
[393334723,1762487442462,-150.0,0.00035548,4]
[393334724,1762487442471,-400.0,0.0003555,15]
[393334725,1762487442481,-500.0,0.00035609,30]
[393334727,1762487442490,-999.0,0.00035616,120]
[393334728,1762487442500,-6000.0,0.00035616,5]
[393334729,1762487442509,-4000.0,0.00035616,5]
[393334730,1762487442519,-1000.0,0.00035616,5]
[393334731,1762487442528,-700.0,0.00035623,30]
[393334732,1762487442537,-700.0,0.0003563,30]
[393334733,1762487442547,-19195.1566376,0.0003567,3]
[393334734,1762487442556,-607.0,0.0003568,2]
[393334735,1762487442565,-1316.0,0.0003568,2]
[393334736,1762487442575,-574.0,0.0003568,2]
[393334737,1762487442584,-1596.0,0.0003568,2]
[393334738,1762487442593,-820.0,0.0003568,2]
[393334739,1762487442602,-905.0,0.0003568,2]
[393334740,1762487442611,-1188.0,0.0003568,2]
[393334741,1762487442620,-812.0,0.0003568,2]
[393334742,1762487442629,-1273.0,0.0003568,2]
[393334743,1762487442639,-6659.0,0.0003568,2]
[393334744,1762487442650,-2142.0,0.0003568,2]
[393334745,1762487442659,-6476.0,0.0003568,2]
[393334746,1762487442668,-1004.0,0.000357,7]
[393334747,1762487442678,-500.0,0.00035712,30]
[393334748,1762487442687,-874.46145275,0.00035762,2]
[393334749,1762487442698,-510.17653817,0.00035799,30]
[393334750,1762487442710,-500.0,0.00035812,30]
[393334751,1762487442719,-500.0,0.00035817,30]
[393334752,1762487442728,-500.0,0.00035843,30]
[393334753,1762487442737,-218.65853886,0.0003586,2]
[393334754,1762487442746,-500.0,0.00035861,30]
[393334755,1762487442755,-500.0,0.00035886,30]
[393334756,1762487442765,-150.0,0.0003589,7]
[393334757,1762487442774,-199.0,0.0003589,9]
[393334758,1762487442783,-150.0,0.00035897,7]
[393334759,1762487442792,-2000.0,0.00035918,120]
[393334760,1762487442801,-874.46145275,0.00035922,2]
[393334761,1762487442811,-700.0,0.0003593,30]
[393334762,1762487442820,-500.0,0.00035996,30]
[393334763,1762487442829,-500.0,0.00036,5]
[393334764,1762487442838,-166.30259322,0.00036001,15]
[393334765,1762487442847,-161.6,0.00036003,60]
[393334766,1762487442856,-157.16,0.00036005,60]
[393334767,1762487442865,-218.65853886,0.00036017,2]
[393334768,1762487442875,-500.0,0.00036033,30]
[393334769,1762487442884,-285.15,0.000361,30]
[393334770,1762487442893,-161.6,0.00036103,60]
[393334771,1762487442903,-157.16,0.00036105,60]
[393334772,1762487442912,-700.0,0.00036132,30]
[393334773,1762487442921,-500.0,0.00036146,30]
[393334774,1762487442932,-150.0,0.00036182,7]
[393334775,1762487442941,-161.6,0.00036203,60]
[393334776,1762487442950,-157.16,0.00036205,60]
[393334777,1762487442959,-19195.1566376,0.00036275,3]
[393334778,1762487442969,-9949.81577771,0.00036285,2]
[393334779,1762487442978,-10116.71229981,0.00036285,2]
[393334780,1762487442988,-500.0,0.0003629,30]
[393334781,1762487443002,-500.0,0.00036293,30]
[393334782,1762487443011,-161.60073245,0.00036303,60]
[393334783,1762487443020,-157.16,0.00036305,60]
[393334784,1762487443029,-150.0,0.00036308,7]
[393334785,1762487443039,-500.0,0.00036311,30]
[393334786,1762487443049,-150.0,0.00036323,7]
[393334787,1762487443059,-700.0,0.00036349,30]
[393334788,1762487443068,-500.0,0.0003636,30]
[393334789,1762487443078,-874.46145275,0.00036362,2]
[393334790,1762487443087,-700.0,0.00036377,30]
[393334791,1762487443097,-218.65853886,0.00036386,2]
[393334792,1762487443110,-1088.81,0.000364,14]
[393334793,1762487443122,-157.16,0.00036405,60]
[393334794,1762487443131,-1000.0,0.00036411,5]
[393334795,1762487443141,-874.46145275,0.00036442,2]
[393334796,1762487443152,-500.0,0.00036451,30]
[393334797,1762487443162,-500.0,0.00036462,30]
[393334798,1762487443171,-218.65853886,0.00036475,2]
[393334799,1762487443182,-157.16,0.00036505,60]
[393334800,1762487443192,-157.16,0.00036605,60]
[393334801,1762487443203,-150.0,0.00036655,7]
[393334802,1762487443212,-500.0,0.00036686,30]
[393334803,1762487443222,-500.0,0.00036698,30]
[393334804,1762487443231,-263.0,0.000367,13]
[393334805,1762487443241,-1004.0,0.000367,7]
[393334806,1762487443251,-500.0,0.00036701,30]
[393334807,1762487443260,-700.0,0.00036703,30]
[393334808,1762487443270,-500.0,0.00036704,30]
[393334809,1762487443279,-157.16,0.00036705,60]
[393334810,1762487443289,-500.0,0.0003674,30]
[393334811,1762487443299,-874.46145275,0.00036761,2]
[393334812,1762487443308,-466.89261371,0.00036822,5]
[393334813,1762487443317,-500.0,0.00036832,30]
[393334814,1762487443327,-300.0,0.00036844,2]
[393334815,1762487443336,-586.61469573,0.00036859,2]
[393334816,1762487443346,-218.65853886,0.0003691,2]
[393334817,1762487443355,-19195.1566376,0.0003699,4]
[393334818,1762487443365,-499.0,0.00037,20]
[393334819,1762487443375,-2000.0,0.00037,2]
[393334820,1762487443384,-2000.0,0.00037,2]
[393334821,1762487443393,-2000.0,0.00037,2]
[393334822,1762487443402,-2000.0,0.00037,2]
[393334823,1762487443411,-2000.0,0.00037,2]
[393334824,1762487443420,-2453.579805,0.00037,27]
[393334825,1762487443430,-1623.66572767,0.00037,120]
[393334826,1762487443439,-152.0,0.0003703,3]
[393334827,1762487443449,-874.46145275,0.00037033,2]
[393334828,1762487443459,-500.0,0.00037055,30]
[393334829,1762487443468,-1222.87,0.00037113,2]
[393334830,1762487443478,-2000.0,0.00037132,120]
[393334831,1762487443488,-150.0,0.00037134,7]
[393334832,1762487443498,-218.65853886,0.00037169,2]
[393334833,1762487443507,-1000.0,0.00037188,7]
[393334834,1762487443517,-167.4277544,0.000372,120]
[393334835,1762487443526,-167.4277544,0.000372,120]
[393334836,1762487443535,-167.4277544,0.000372,120]
[393334837,1762487443544,-285.15,0.000372,30]
[393334838,1762487443554,-1885.32,0.000372,2]
[393334839,1762487443564,-1000.0,0.00037215,7]
[393334840,1762487443574,-500.0,0.00037256,30]
[393334841,1762487443583,-199.0,0.0003726,10]
[393334842,1762487443592,-500.0,0.00037263,30]
[393334843,1762487443602,-1000.0,0.00037273,7]
[393334844,1762487443611,-150.0,0.00037294,7]
[393334845,1762487443621,-2500.0,0.00037304,2]
[393334846,1762487443630,-1000.0,0.00037337,7]
[393334847,1762487443639,-156.627592,0.0003734,3]
[393334848,1762487443649,-155.170809,0.0003734,3]
[393334849,1762487443659,-500.0,0.00037343,30]
[393334850,1762487443668,-1000.0,0.0003739,7]
[393334851,1762487443678,-2000.0,0.000374,2]
[393334852,1762487443687,-1088.81,0.000374,14]
[393334853,1762487443698,-1000.0,0.00037421,7]
[393334854,1762487443708,-150.0,0.00037424,7]
[393334855,1762487443717,-862.55463796,0.0003743,2]
[393334856,1762487443727,-500.0,0.00037431,30]
[393334857,1762487443736,-700.0,0.00037444,30]
[393334858,1762487443746,-218.65853886,0.00037445,2]
[393334859,1762487443756,-150.0,0.00037474,7]
[393334860,1762487443765,-500.0,0.00037476,30]
[393334861,1762487443776,-300.0,0.00037478,2]
[393334862,1762487443785,-1500.0,0.000375,27]
[393334863,1762487443795,-500.0,0.00037503,30]
[393334864,1762487443804,-1000.0,0.0003751,7]
[393334865,1762487443814,-500.0,0.0003753,30]
[393334866,1762487443824,-874.46145275,0.00037533,2]
[393334867,1762487443834,-1000.0,0.00037537,7]
[393334868,1762487443845,-500.0,0.00037542,30]
[393334869,1762487443856,-1000.0,0.00037544,7]
[393334870,1762487443865,-1000.0,0.00037545,7]
[393334871,1762487443874,-300.0,0.00037557,2]
[393334872,1762487443884,-1000.0,0.00037564,7]
[393334873,1762487443896,-2733.10487,0.0003762,2]
[393334874,1762487443906,-1000.0,0.00037631,7]
[393334875,1762487443916,-500.0,0.00037633,30]
[393334876,1762487443926,-218.65853886,0.00037636,2]
[393334877,1762487443935,-1000.0,0.00037641,7]
[393334878,1762487443945,-938.97212998,0.00037674,7]
[393334879,1762487443954,-19195.1566376,0.00037687,4]
[393334880,1762487443964,-300.0,0.00037697,2]
[393334881,1762487443973,-362.43,0.000377,120]
[393334882,1762487443982,-300.0,0.000377,15]
[393334883,1762487443991,-1004.0,0.000377,7]
[393334884,1762487444001,-500.0,0.00037701,30]
[393334885,1762487444010,-200.0,0.00037706,2]
[393334886,1762487444020,-200.0,0.00037706,2]
[393334887,1762487444029,-200.0,0.00037706,2]
[393334888,1762487444038,-200.0,0.00037706,2]
[393334889,1762487444047,-200.0,0.00037706,2]
[393334890,1762487444057,-200.0,0.00037706,2]
[393334891,1762487444066,-200.0,0.00037706,2]
[393334892,1762487444075,-200.0,0.00037706,2]
[393334893,1762487444084,-200.0,0.00037706,2]
[393334894,1762487444094,-200.0,0.00037706,2]
[393334895,1762487444104,-200.0,0.00037706,2]
[393334896,1762487444117,-200.0,0.00037706,2]
[393334897,1762487444126,-200.0,0.00037706,2]
[393334898,1762487444135,-200.0,0.00037706,2]
[393334899,1762487444144,-200.0,0.00037706,2]
[393334900,1762487444155,-200.0,0.00037706,2]
[393334901,1762487444163,-200.0,0.00037706,2]
[393334902,1762487444172,-200.0,0.00037706,2]
[393334903,1762487444181,-200.0,0.00037706,2]
[393334904,1762487444191,-200.0,0.00037706,2]
[393334905,1762487444200,-200.0,0.00037706,2]
[393334906,1762487444209,-200.0,0.00037706,2]
[393334907,1762487444219,-200.0,0.00037706,2]
[393334908,1762487444228,-200.0,0.00037706,2]
[393334909,1762487444237,-200.0,0.00037706,2]
[393334910,1762487444247,-200.0,0.00037706,2]
[393334911,1762487444256,-200.0,0.00037706,2]
[393334912,1762487444266,-200.0,0.00037706,2]
[393334913,1762487444276,-200.0,0.00037706,2]
[393334914,1762487444286,-200.0,0.00037706,2]
[393334915,1762487444295,-176.0,0.00037706,13]
[393334916,1762487444304,-500.0,0.00037706,120]
[393334917,1762487444313,-500.0,0.00037706,120]
[393334918,1762487444322,-500.0,0.00037706,120]
[393334919,1762487444331,-500.0,0.00037706,120]
[393334920,1762487444341,-500.0,0.00037706,120]
[393334921,1762487444351,-157.01898712,0.00037708,2]
[393334922,1762487444360,-200.0,0.00037708,2]
[393334923,1762487444370,-200.0,0.00037708,2]
[393334924,1762487444379,-200.0,0.00037708,2]
[393334925,1762487444388,-200.0,0.00037708,2]
[393334926,1762487444439,-200.0,0.00037708,2]
[393334927,1762487444449,-294.0,0.00037708,2]
[393334928,1762487444458,-500.0,0.00037708,120]
[393334929,1762487444467,-231.0,0.00037708,120]
[393334930,1762487444478,-300.0,0.00037723,86]
[393334931,1762487444490,-500.0,0.00037726,30]
[393334932,1762487444501,-698.68,0.00037726,2]
[393334933,1762487444510,-698.68,0.00037726,2]
[393334934,1762487444520,-698.68,0.00037726,2]
[393334935,1762487444529,-300.0,0.00037727,2]
[393334936,1762487444538,-510.37,0.00037733,7]
[393334937,1762487444547,-548.34,0.00037733,7]
[393334938,1762487444556,-500.0,0.00037733,7]
[393334939,1762487444565,-500.0,0.00037733,7]
[393334940,1762487444574,-500.0,0.00037733,7]
[393334941,1762487444583,-500.0,0.00037733,7]
[393334942,1762487444592,-500.0,0.00037733,7]
[393334943,1762487444601,-500.0,0.00037733,7]
[393334944,1762487444610,-500.0,0.00037733,7]
[393334945,1762487444619,-601.03,0.00037733,7]
[393334946,1762487444628,-500.0,0.00037733,7]
[393334947,1762487444637,-511.26,0.00037733,7]
[393334948,1762487444647,-874.46145283,0.00037739,2]
[393334949,1762487444657,-500.0,0.0003776,30]
[393334950,1762487444666,-150.0,0.0003776,7]
[393334951,1762487444676,-700.0,0.00037764,30]
[393334952,1762487444687,-150.0,0.00037768,7]
[393334953,1762487444698,-1000.0,0.00037785,7]
[393334954,1762487444708,-150.0,0.00037788,7]
[393334955,1762487444718,-300.0,0.00037793,2]
[393334956,1762487444728,-1000.0,0.00037804,7]
[393334957,1762487444738,-500.0,0.0003781,30]
[393334958,1762487444747,-500.0,0.00037811,30]
[393334959,1762487444756,-1000.0,0.00037812,7]
[393334960,1762487444766,-1000.0,0.00037824,7]
[393334961,1762487444776,-150.0,0.00037832,7]
[393334962,1762487444785,-300.0,0.00037835,2]
[393334963,1762487444795,-1000.0,0.00037836,7]
[393334964,1762487444804,-1000.0,0.00037837,7]
[393334965,1762487444814,-2733.10487,0.0003784,2]
[393334966,1762487444823,-1000.0,0.00037843,7]
[393334967,1762487444832,-300.0,0.00037845,2]
[393334968,1762487444841,-504.11490822,0.0003785,30]
[393334969,1762487444849,-19195.1566376,0.00037869,4]
[393334970,1762487444858,-1000.0,0.00037888,7]
[393334971,1762487444868,-500.0,0.00037889,30]
[393334972,1762487444878,-1108.74518952,0.00037912,20]
[393334973,1762487444887,-1094.7711325,0.00037912,20]
[393334974,1762487444896,-1046.01447574,0.00037912,20]
[393334975,1762487444905,-1013.15789211,0.00037912,20]
[393334976,1762487444914,-1132.1210447,0.00037912,20]
[393334977,1762487444923,-1009.01556029,0.00037912,20]
[393334978,1762487444931,-1016.96221425,0.00037912,20]
[393334979,1762487444941,-1001.93470753,0.00037912,20]
[393334980,1762487444951,-1004.23733496,0.00037912,20]
[393334981,1762487444960,-1019.78825437,0.00037912,20]
[393334982,1762487444969,-1098.45581029,0.00037912,20]
[393334983,1762487444978,-1097.58221393,0.00037912,20]
[393334984,1762487444986,-1074.16986104,0.00037912,20]
[393334985,1762487444995,-1144.6547622,0.00037912,20]
[393334986,1762487445005,-1055.8911251,0.00037912,20]
[393334987,1762487445014,-1033.87433681,0.00037912,20]
[393334988,1762487445023,-1179.60171609,0.00037912,20]
[393334989,1762487445032,-500.0,0.00037917,30]
[393334990,1762487445041,-300.0,0.00037925,2]
[393334991,1762487445050,-1000.0,0.00037925,7]
[393334992,1762487445059,-1000.0,0.00037926,7]
[393334993,1762487445068,-300.0,0.00037942,2]
[393334994,1762487445077,-300.0,0.00037955,2]
[393334995,1762487445086,-150.0,0.00037956,7]
[393334996,1762487445094,-1000.0,0.0003796,7]
[393334997,1762487445106,-150.0,0.00037971,7]
[393334998,1762487445115,-1000.0,0.00037979,7]
[393334999,1762487445124,-151.0,0.00037985,14]
[393335000,1762487445134,-500.0,0.00037987,7]
[393335001,1762487445144,-500.0,0.00037987,7]
[393335002,1762487445153,-10620.3226511,0.00037988,2]
[393335003,1762487445161,-2000.0,0.00037999,2]
[393335004,1762487445170,-300.0,0.00037999,2]
[393335005,1762487445182,-400.0,0.00038,120]
[393335006,1762487445191,-193.36797991,0.00038,2]
[393335007,1762487445200,-263.39951133,0.00038,3]
[393335008,1762487445208,-151.0,0.00038,2]
[393335009,1762487445217,-151.0,0.00038,2]
[393335010,1762487445227,-2733.10487,0.00038,2]
[393335011,1762487445236,-184.12,0.00038,37]
[393335012,1762487445245,-13147.76,0.00038,14]
[393335014,1762487445256,-395.0,0.00038,2]
[393335015,1762487445265,-1500.0,0.00038,27]
[393335016,1762487445274,-300.0,0.00038002,2]
[393335017,1762487445285,-500.0,0.00038005,30]
[393335018,1762487445294,-1000.0,0.00038014,7]
[393335019,1762487445303,-500.0,0.00038016,30]
[393335020,1762487445313,-287.235,0.00038026,30]
[393335021,1762487445324,-1000.0,0.00038039,7]
[393335022,1762487445335,-1000.0,0.00038059,7]
[393335023,1762487445344,-165.0,0.00038059,30]
[393335024,1762487445353,-300.0,0.00038061,2]
[393335025,1762487445364,-500.0,0.00038063,30]
[393335026,1762487445373,-300.0,0.00038078,2]
[393335027,1762487445383,-2733.10487,0.0003808,2]
[393335028,1762487445392,-1000.0,0.00038082,7]
[393335029,1762487445401,-150.0,0.00038092,7]
[393335030,1762487445410,-1000.0,0.00038096,7]
[393335031,1762487445419,-300.0,0.00038097,2]
[393335032,1762487445428,-214.96687417,0.000381,33]
[393335033,1762487445437,-290.49160293,0.000381,33]
[393335034,1762487445447,-1000.0,0.00038103,7]
[393335035,1762487445456,-300.0,0.00038104,2]
[393335036,1762487445466,-1000.0,0.00038117,7]
[393335037,1762487445475,-152.0,0.00038118,35]
[393335038,1762487445484,-196.89181904,0.00038118,5]
[393335039,1762487445493,-1000.0,0.00038125,7]
[393335040,1762487445503,-1000.0,0.00038142,7]
[393335041,1762487445511,-500.0,0.00038146,30]
[393335042,1762487445520,-497.42973401,0.00038152,2]
[393335043,1762487445531,-300.0,0.00038155,2]
[393335044,1762487445539,-1000.0,0.00038159,7]
[393335045,1762487445549,-1000.0,0.00038164,7]
[393335046,1762487445558,-500.0,0.00038165,30]
[393335047,1762487445567,-500.0,0.00038214,30]
[393335048,1762487445577,-150.0,0.00038218,7]
[393335049,1762487445587,-1000.0,0.00038221,7]
[393335050,1762487445596,-300.0,0.00038223,2]
[393335051,1762487445606,-150.0,0.00038227,7]
[393335052,1762487445616,-1000.0,0.00038235,7]
[393335053,1762487445626,-1000.0,0.00038239,7]
[393335054,1762487445636,-1000.0,0.00038242,7]
[393335055,1762487445645,-150.0,0.00038248,7]
[393335056,1762487445655,-150.0,0.00038251,7]
[393335057,1762487445663,-1000.0,0.00038256,7]
[393335058,1762487445673,-1000.0,0.00038262,7]
[393335059,1762487445682,-300.0,0.00038289,2]
[393335060,1762487445691,-501.61644277,0.000383,30]
[393335061,1762487445700,-285.15,0.000383,30]
[393335062,1762487445709,-1400.0,0.000383,13]
[393335063,1762487445718,-1034.91088649,0.00038303,7]
[393335064,1762487445727,-500.0,0.00038304,30]
[393335065,1762487445736,-2000.0,0.00038311,2]
[393335066,1762487445745,-300.0,0.00038318,2]
[393335067,1762487445753,-1000.0,0.00038321,7]
[393335068,1762487445762,-805.12204753,0.00038323,30]
[393335069,1762487445770,-150.0,0.00038323,120]
[393335070,1762487445779,-150.0,0.00038328,7]
[393335071,1762487445788,-2733.10487,0.0003833,2]
[393335072,1762487445797,-1000.0,0.00038343,7]
[393335073,1762487445806,-2000.0,0.00038347,120]
[393335074,1762487445815,-1016.6429,0.00038349,2]
[393335075,1762487445823,-2000.0,0.00038349,2]
[393335076,1762487445832,-2000.0,0.00038349,2]
[393335077,1762487445841,-500.0,0.00038356,2]
[393335078,1762487445850,-999.0,0.00038356,120]
[393335079,1762487445859,-700.0,0.00038372,30]
[393335080,1762487445868,-1000.0,0.00038374,7]
[393335081,1762487445878,-1000.0,0.00038375,7]
[393335082,1762487445887,-300.0,0.00038383,2]
[393335083,1762487445898,-1000.0,0.00038396,7]
[393335084,1762487445907,-1000.0,0.00038396,7]
[393335085,1762487445917,-1000.0,0.00038398,7]
[393335086,1762487445926,-200.0,0.000384,14]
[393335087,1762487445947,-525.5272976,0.0003841,2]
[393335088,1762487445957,-95620.77060682,0.0003842,2]
[393335089,1762487445967,-286.93594545,0.0003842,7]
[393335090,1762487445976,-1000.0,0.0003843,7]
[393335091,1762487445985,-1000.0,0.00038432,7]
[393335092,1762487445994,-1000.0,0.00038436,7]
[393335093,1762487446003,-1000.0,0.00038436,7]
[393335094,1762487446012,-1000.0,0.00038438,7]
[393335095,1762487446022,-1000.0,0.0003844,7]
[393335096,1762487446031,-1000.0,0.00038441,7]
[393335097,1762487446041,-1000.0,0.00038444,7]
[393335098,1762487446051,-1000.0,0.00038451,7]
[393335099,1762487446060,-1000.0,0.00038453,7]
[393335100,1762487446070,-700.0,0.00038458,30]
[393335101,1762487446079,-722.9,0.00038459,30]
[393335102,1762487446088,-722.9,0.00038459,30]
[393335103,1762487446098,-722.9,0.00038459,30]